[Event "*** SCC Grand Prix: Titled Tuesday Blitz"]
[Site "Chess.com"]
[Date "2020.06.02"]
[Round "3"]
[White "AnishGiri"]
[Black "Matibar"]
[Result "1/2-1/2"]
[WhiteElo "2974"]
[BlackElo "2706"]
[TimeControl "180+1"]
[EndTime "10:30:43 PDT"]
[Termination "Game drawn by repetition"]

1. e4 {[%clk 0:03:00.9]} 1... d5 {[%clk 0:02:59]} 2. exd5 {[%clk 0:03:00.6]}
2... Qxd5 {[%clk 0:02:59.9]} 3. Nc3 {[%clk 0:03:01]} 3... Qd8 {[%clk 0:03:00.2]}
4. d4 {[%clk 0:03:01.2]} 4... Nf6 {[%clk 0:03:00.9]} 5. Nf3 {[%clk 0:03:01.4]}
5... Bg4 {[%clk 0:03:00.3]} 6. Be2 {[%clk 0:03:01.1]} 6... e6 {[%clk 0:02:58.8]}
7. O-O {[%clk 0:03:00.8]} 7... c6 {[%clk 0:02:54.6]} 8. h3 {[%clk 0:03:00.8]}
8... Bxf3 {[%clk 0:02:54.5]} 9. Bxf3 {[%clk 0:03:00.9]} 9... Nbd7 {[%clk
0:02:55.4]} 10. Ne2 {[%clk 0:02:59.1]} 10... Bd6 {[%clk 0:02:51.8]} 11. g3
{[%clk 0:02:59.6]} 11... O-O {[%clk 0:02:51.2]} 12. a4 {[%clk 0:02:58.1]} 12...
Qc7 {[%clk 0:02:36.1]} 13. a5 {[%clk 0:02:56.4]} 13... e5 {[%clk 0:02:34.4]} 14.
c3 {[%clk 0:02:50]} 14... a6 {[%clk 0:02:18.2]} 15. Bg2 {[%clk 0:02:49]} 15...
Rfe8 {[%clk 0:02:17.9]} 16. Qc2 {[%clk 0:02:41.9]} 16... Re7 {[%clk 0:02:00.9]}
17. dxe5 {[%clk 0:02:29.7]} 17... Bxe5 {[%clk 0:01:59.3]} 18. Nf4 {[%clk
0:02:25]} 18... Rae8 {[%clk 0:01:57.2]} 19. Bd2 {[%clk 0:02:23]} 19... Nf8
{[%clk 0:01:47.7]} 20. b4 {[%clk 0:02:18.7]} 20... Ng6 {[%clk 0:01:35.2]} 21.
Nd3 {[%clk 0:02:11.7]} 21... Bd6 {[%clk 0:01:19]} 22. Rae1 {[%clk 0:02:08.5]}
22... h6 {[%clk 0:01:13]} 23. Rxe7 {[%clk 0:02:05.9]} 23... Rxe7 {[%clk
0:01:12.1]} 24. Re1 {[%clk 0:02:06.5]} 24... Rxe1+ {[%clk 0:01:06.6]} 25. Bxe1
{[%clk 0:02:06.4]} 25... Ne5 {[%clk 0:01:06.9]} 26. Nf4 {[%clk 0:02:02.4]} 26...
Nc4 {[%clk 0:01:03.2]} 27. Ne2 {[%clk 0:01:53.7]} 27... Qe7 {[%clk 0:01:02.7]}
28. Kf1 {[%clk 0:01:48.4]} 28... Nd5 {[%clk 0:00:59]} 29. Qd3 {[%clk 0:01:43.9]}
29... Ne5 {[%clk 0:00:54.8]} 30. Qe4 {[%clk 0:01:40.7]} 30... Nf6 {[%clk
0:00:54.4]} 31. Qc2 {[%clk 0:01:34.7]} 31... h5 {[%clk 0:00:49.1]} 32. Nd4
{[%clk 0:01:33.2]} 32... g6 {[%clk 0:00:48]} 33. Qe2 {[%clk 0:01:30.2]} 33...
Ned7 {[%clk 0:00:30.1]} 34. Bd2 {[%clk 0:01:26]} 34... Qxe2+ {[%clk 0:00:29.6]}
35. Kxe2 {[%clk 0:01:26.9]} 35... Kf8 {[%clk 0:00:29]} 36. f4 {[%clk 0:01:25]}
36... Ke7 {[%clk 0:00:28.2]} 37. Kd3 {[%clk 0:01:25.5]} 37... Ne8 {[%clk
0:00:27]} 38. g4 {[%clk 0:01:22.5]} 38... hxg4 {[%clk 0:00:26.7]} 39. hxg4
{[%clk 0:01:23.4]} 39... Nef6 {[%clk 0:00:27]} 40. Bf3 {[%clk 0:01:23]} 40...
Kd8 {[%clk 0:00:26.4]} 41. Ne2 {[%clk 0:01:18.6]} 41... Kc7 {[%clk 0:00:26.3]}
42. c4 {[%clk 0:01:19]} 42... Be7 {[%clk 0:00:17.2]} 43. Bc3 {[%clk 0:01:15.2]}
43... Ne8 {[%clk 0:00:14.9]} 44. c5 {[%clk 0:00:59.6]} 44... Bf6 {[%clk
0:00:14.7]} 45. Bd2 {[%clk 0:00:56.3]} 45... Kd8 {[%clk 0:00:15.2]} 46. Ng3
{[%clk 0:00:54.1]} 46... Nc7 {[%clk 0:00:14.9]} 47. Ne4 {[%clk 0:00:53.1]} 47...
Be7 {[%clk 0:00:14.8]} 48. Kc4 {[%clk 0:00:47.9]} 48... Nd5 {[%clk 0:00:14.2]}
49. Nd6 {[%clk 0:00:44]} 49... Bxd6 {[%clk 0:00:13.9]} 50. cxd6 {[%clk
0:00:44.7]} 50... N5f6 {[%clk 0:00:13]} 51. Be3 {[%clk 0:00:38.6]} 51... Ne8
{[%clk 0:00:13.1]} 52. Bc5 {[%clk 0:00:38.7]} 52... Ndf6 {[%clk 0:00:12.9]} 53.
g5 {[%clk 0:00:33.8]} 53... Nd7 {[%clk 0:00:12.1]} 54. Bg4 {[%clk 0:00:31.8]}
54... Ng7 {[%clk 0:00:12.3]} 55. Bd4 {[%clk 0:00:29]} 55... Ne6 {[%clk
0:00:12.1]} 56. Be3 {[%clk 0:00:25.3]} 56... Ke8 {[%clk 0:00:11.8]} 57. Kd3
{[%clk 0:00:25.4]} 57... Ndf8 {[%clk 0:00:11.4]} 58. Ke4 {[%clk 0:00:24.2]}
58... Nd7 {[%clk 0:00:10.9]} 59. f5 {[%clk 0:00:22.2]} 59... gxf5+ {[%clk
0:00:11]} 60. Kxf5 {[%clk 0:00:22.3]} 60... Ng7+ {[%clk 0:00:11.3]} 61. Ke4
{[%clk 0:00:21.6]} 61... Ne6 {[%clk 0:00:11.2]} 62. Bf5 {[%clk 0:00:20.5]} 62...
Ng7 {[%clk 0:00:11]} 63. Bh3 {[%clk 0:00:21]} 63... Ne6 {[%clk 0:00:11.2]} 64.
g6 {[%clk 0:00:21.3]} 64... Kf8 {[%clk 0:00:10.3]} 65. Bh6+ {[%clk 0:00:19.9]}
65... Kg8 {[%clk 0:00:10.4]} 66. Bd2 {[%clk 0:00:17.9]} 66... Kg7 {[%clk
0:00:10.4]} 67. gxf7 {[%clk 0:00:16.4]} 67... Kxf7 {[%clk 0:00:11.3]} 68. Bf5
{[%clk 0:00:15.1]} 68... Nf6+ {[%clk 0:00:11.4]} 69. Ke5 {[%clk 0:00:15.2]}
69... Nd7+ {[%clk 0:00:11.7]} 70. Ke4 {[%clk 0:00:15.7]} 70... Nf6+ {[%clk
0:00:11.9]} 71. Kd3 {[%clk 0:00:13.7]} 71... Ne8 {[%clk 0:00:12.1]} 72. Bg4
{[%clk 0:00:09.8]} 72... Nxd6 {[%clk 0:00:12.2]} 73. Bc3 {[%clk 0:00:09.8]}
73... Nc7 {[%clk 0:00:11.5]} 74. Be5 {[%clk 0:00:09.5]} 74... Ke7 {[%clk
0:00:11.7]} 75. Bxd6+ {[%clk 0:00:08.6]} 75... Kxd6 {[%clk 0:00:12.1]} 76. Bc8
{[%clk 0:00:09.3]} 76... Nd5 {[%clk 0:00:12.5]} 77. Bxb7 {[%clk 0:00:09.8]}
77... Nxb4+ {[%clk 0:00:12.8]} 78. Kc4 {[%clk 0:00:10.4]} 78... Kc7 {[%clk
0:00:10.5]} 79. Kxb4 {[%clk 0:00:10.3]} 79... Kxb7 {[%clk 0:00:10.4]} 80. Kc4
{[%clk 0:00:10]} 80... Kc7 {[%clk 0:00:10.9]} 81. Kc5 {[%clk 0:00:10]} 81... Kb7
{[%clk 0:00:10]} 82. Kd6 {[%clk 0:00:10.2]} 82... c5 {[%clk 0:00:10.6]} 83. Kxc5
{[%clk 0:00:10.7]} 83... Kc7 {[%clk 0:00:11]} 84. Kd5 {[%clk 0:00:11.4]} 84...
Kd7 {[%clk 0:00:11.5]} 85. Kc5 {[%clk 0:00:12]} 85... Kc7 {[%clk 0:00:12]} 86.
Kd5 {[%clk 0:00:12.9]} 86... Kd7 {[%clk 0:00:12.4]} 87. Kc5 {[%clk 0:00:13.8]}
87... Kc7 {[%clk 0:00:13]} 1/2-1/2

[Event "*** SCC Grand Prix: Titled Tuesday Blitz"]
[Site "Chess.com"]
[Date "2020.06.02"]
[Round "3"]
[White "Tenamu"]
[Black "Natalya_Buksa"]
[Result "0-1"]
[WhiteElo "2357"]
[BlackElo "2559"]
[TimeControl "180+1"]
[EndTime "10:30:49 PDT"]
[Termination "Natalya_Buksa won by resignation"]

1. e4 {[%clk 0:03:00.9]} 1... c5 {[%clk 0:03:00]} 2. Nf3 {[%clk 0:03:00.6]} 2...
Nc6 {[%clk 0:03:00.5]} 3. Bb5 {[%clk 0:02:59.5]} 3... g6 {[%clk 0:03:00.8]} 4.
O-O {[%clk 0:02:58.7]} 4... Bg7 {[%clk 0:03:00.8]} 5. c3 {[%clk 0:02:57.3]} 5...
Qb6 {[%clk 0:02:58.2]} 6. Na3 {[%clk 0:02:55.1]} 6... a6 {[%clk 0:02:58.1]} 7.
Ba4 {[%clk 0:02:54.4]} 7... Qc7 {[%clk 0:02:57.1]} 8. Bc2 {[%clk 0:02:52.5]}
8... d6 {[%clk 0:02:49.2]} 9. Nc4 {[%clk 0:02:49.5]} 9... b5 {[%clk 0:02:48.5]}
10. Ne3 {[%clk 0:02:49.5]} 10... Nf6 {[%clk 0:02:45.1]} 11. b3 {[%clk
0:02:49.2]} 11... O-O {[%clk 0:02:43.5]} 12. Bb2 {[%clk 0:02:49.3]} 12... e5
{[%clk 0:02:42.8]} 13. Rc1 {[%clk 0:02:48.6]} 13... Nd8 {[%clk 0:02:29.3]} 14.
d4 {[%clk 0:02:47.1]} 14... Re8 {[%clk 0:02:28.2]} 15. dxe5 {[%clk 0:02:38.1]}
15... dxe5 {[%clk 0:02:28.1]} 16. c4 {[%clk 0:02:38.5]} 16... Bb7 {[%clk
0:02:20.4]} 17. Nd5 {[%clk 0:02:37.4]} 17... Qd6 {[%clk 0:02:02.1]} 18. Qe2
{[%clk 0:02:20]} 18... Nc6 {[%clk 0:02:00.2]} 19. Rfd1 {[%clk 0:02:16.4]} 19...
Nd4 {[%clk 0:02:00.3]} 20. Qe3 {[%clk 0:02:12]} 20... Nxd5 {[%clk 0:01:54.5]}
21. cxd5 {[%clk 0:02:10.8]} 21... Rac8 {[%clk 0:01:48.6]} 22. Bd3 {[%clk
0:02:09.7]} 22... h6 {[%clk 0:01:29.6]} 23. Ba3 {[%clk 0:02:07.9]} 23... Qb6
{[%clk 0:01:25.7]} 24. h3 {[%clk 0:02:00.8]} 24... a5 {[%clk 0:01:25.1]} 25.
Nxd4 {[%clk 0:01:51.2]} 25... cxd4 {[%clk 0:01:24.4]} 26. Qe2 {[%clk 0:01:48.1]}
26... b4 {[%clk 0:01:03.8]} 27. Bb2 {[%clk 0:01:46.4]} 27... Bf6 {[%clk
0:01:02.1]} 28. Bc4 {[%clk 0:01:39.6]} 28... Qd6 {[%clk 0:01:00.7]} 29. Rc2
{[%clk 0:01:38.1]} 29... Rc7 {[%clk 0:00:59]} 30. Rdc1 {[%clk 0:01:35.4]} 30...
Rec8 {[%clk 0:00:59.2]} 31. Bd3 {[%clk 0:01:33.3]} 31... Bg5 {[%clk 0:00:57.3]}
32. Rxc7 {[%clk 0:01:31.3]} 32... Rxc7 {[%clk 0:00:58.2]} 33. Rc2 {[%clk
0:01:28.7]} 33... Kf8 {[%clk 0:00:52.3]} 34. g3 {[%clk 0:01:20.9]} 34... Be7
{[%clk 0:00:52.3]} 35. h4 {[%clk 0:01:15]} 35... Kg7 {[%clk 0:00:51.5]} 36. Qd2
{[%clk 0:01:13.2]} 36... Bc8 {[%clk 0:00:33.6]} 37. Bc1 {[%clk 0:01:09.8]} 37...
h5 {[%clk 0:00:28.6]} 38. Bb2 {[%clk 0:01:00.2]} 38... Rxc2 {[%clk 0:00:24.7]}
39. Qxc2 {[%clk 0:00:59.9]} 39... Qc5 {[%clk 0:00:25.6]} 40. Qxc5 {[%clk
0:00:48]} 40... Bxc5 {[%clk 0:00:26.5]} 41. Kf1 {[%clk 0:00:47.9]} 41... Kf8
{[%clk 0:00:26.6]} 42. Bc1 {[%clk 0:00:44.7]} 42... Ke7 {[%clk 0:00:25.4]} 43.
Ke2 {[%clk 0:00:41.4]} 43... Bg4+ {[%clk 0:00:23.3]} 44. f3 {[%clk 0:00:41]}
44... Bc8 {[%clk 0:00:20.1]} 45. Bc4 {[%clk 0:00:39.5]} 45... f5 {[%clk
0:00:18.6]} 46. Bg5+ {[%clk 0:00:36.7]} 46... Ke8 {[%clk 0:00:17.2]} 47. Bf6
{[%clk 0:00:30.9]} 47... Bd6 {[%clk 0:00:17.3]} 48. Kf2 {[%clk 0:00:19.8]} 48...
fxe4 {[%clk 0:00:17]} 49. fxe4 {[%clk 0:00:20]} 49... Bd7 {[%clk 0:00:17.4]} 50.
Kf3 {[%clk 0:00:19.5]} 50... Bc7 {[%clk 0:00:14.9]} 51. Ke2 {[%clk 0:00:18.8]}
51... Kf7 {[%clk 0:00:15.3]} 52. Kd3 {[%clk 0:00:18.4]} 52... Kxf6 {[%clk
0:00:15.2]} 53. Ba6 {[%clk 0:00:17.8]} 53... Ke7 {[%clk 0:00:12.4]} 54. Bb7
{[%clk 0:00:16.2]} 54... Kd6 {[%clk 0:00:12.5]} 55. Kd2 {[%clk 0:00:15.5]} 55...
Bg4 {[%clk 0:00:12.7]} 56. Ba6 {[%clk 0:00:15.5]} 56... Bf3 {[%clk 0:00:13]} 57.
Bd3 {[%clk 0:00:15.2]} 57... Bd8 {[%clk 0:00:13.1]} 58. Ke1 {[%clk 0:00:13.9]}
58... g5 {[%clk 0:00:13.4]} 59. Kf2 {[%clk 0:00:14.8]} 59... Bg4 {[%clk
0:00:13]} 60. hxg5 {[%clk 0:00:14.8]} 60... Bxg5 {[%clk 0:00:12.9]} 61. Bc4
{[%clk 0:00:14.7]} 61... Bd1 {[%clk 0:00:12.7]} 62. Bd3 {[%clk 0:00:13.6]} 62...
h4 {[%clk 0:00:12.9]} 63. gxh4 {[%clk 0:00:13.1]} 63... Bxh4+ {[%clk 0:00:13.4]}
64. Kf1 {[%clk 0:00:12.8]} 64... Bh5 {[%clk 0:00:13.4]} 65. Bc2 {[%clk
0:00:12.3]} 65... d3 {[%clk 0:00:12.4]} 66. Bxd3 {[%clk 0:00:12.4]} 66... Kc5
{[%clk 0:00:13]} 67. Bc4 {[%clk 0:00:10]} 67... Kd4 {[%clk 0:00:13.2]} 68. d6
{[%clk 0:00:10.3]} 68... Kxe4 {[%clk 0:00:13.3]} 69. d7 {[%clk 0:00:10.4]} 69...
Kd4 {[%clk 0:00:13.7]} 70. Kg2 {[%clk 0:00:08.4]} 70... e4 {[%clk 0:00:13.7]}
71. Kh3 {[%clk 0:00:09.3]} 71... Bd8 {[%clk 0:00:13.7]} 72. Kg3 {[%clk
0:00:08.8]} 72... Bc7+ {[%clk 0:00:13.1]} 73. Kf2 {[%clk 0:00:08.5]} 73... e3+
{[%clk 0:00:13.1]} 74. Ke1 {[%clk 0:00:08.2]} 74... Bf3 {[%clk 0:00:13.2]} 75.
Bb5 {[%clk 0:00:07.8]} 75... Kc3 {[%clk 0:00:13.2]} 76. Bc4 {[%clk 0:00:06.4]}
76... Kb2 {[%clk 0:00:13.5]} 77. Bb5 {[%clk 0:00:06.7]} 77... Kxa2 {[%clk
0:00:13.7]} 78. Bc4 {[%clk 0:00:07.1]} 78... Kb2 {[%clk 0:00:14.2]} 79. Be6
{[%clk 0:00:06.8]} 79... Kc3 {[%clk 0:00:14.5]} 80. Bf7 {[%clk 0:00:07.1]} 80...
a4 {[%clk 0:00:14.4]} 81. Be6 {[%clk 0:00:07.6]} 81... a3 {[%clk 0:00:14.3]} 0-1

[Event "*** SCC Grand Prix: Titled Tuesday Blitz"]
[Site "Chess.com"]
[Date "2020.06.02"]
[Round "3"]
[White "jb2mix"]
[Black "AverageRecord"]
[Result "1/2-1/2"]
[WhiteElo "2709"]
[BlackElo "3009"]
[TimeControl "180+1"]
[EndTime "10:30:58 PDT"]
[Termination "Game drawn - insufficient material"]

1. e4 {[%clk 0:03:00]} 1... e5 {[%clk 0:03:00.1]} 2. Nf3 {[%clk 0:02:59.9]} 2...
Nf6 {[%clk 0:03:00.6]} 3. Nxe5 {[%clk 0:02:59.7]} 3... d6 {[%clk 0:02:58.6]} 4.
Nf3 {[%clk 0:03:00.2]} 4... Nxe4 {[%clk 0:02:58]} 5. d3 {[%clk 0:03:01.1]} 5...
Nf6 {[%clk 0:02:57.7]} 6. d4 {[%clk 0:03:02]} 6... Bf5 {[%clk 0:02:56.4]} 7. Bd3
{[%clk 0:02:57.6]} 7... Bxd3 {[%clk 0:02:56.4]} 8. Qxd3 {[%clk 0:02:58.5]} 8...
c6 {[%clk 0:02:56.7]} 9. O-O {[%clk 0:02:58.9]} 9... Be7 {[%clk 0:02:57.2]} 10.
Re1 {[%clk 0:02:59.2]} 10... O-O {[%clk 0:02:57.8]} 11. Nbd2 {[%clk 0:02:56.4]}
11... d5 {[%clk 0:02:57.2]} 12. Nf1 {[%clk 0:02:56.9]} 12... Re8 {[%clk
0:02:56.5]} 13. Ng3 {[%clk 0:02:57.4]} 13... Nbd7 {[%clk 0:02:56.6]} 14. Bf4
{[%clk 0:02:56.1]} 14... g6 {[%clk 0:02:55.6]} 15. Re2 {[%clk 0:02:55.2]} 15...
Bf8 {[%clk 0:02:55.4]} 16. Rae1 {[%clk 0:02:55.3]} 16... Rxe2 {[%clk 0:02:55.3]}
17. Qxe2 {[%clk 0:02:55.2]} 17... Qa5 {[%clk 0:02:52.9]} 18. a3 {[%clk
0:02:49.2]} 18... Re8 {[%clk 0:02:51.4]} 19. Qd2 {[%clk 0:02:39]} 19... Qb5
{[%clk 0:02:28.3]} 20. Rxe8 {[%clk 0:02:36]} 20... Nxe8 {[%clk 0:02:29.2]} 21.
Qe2 {[%clk 0:02:28.3]} 21... Qxe2 {[%clk 0:02:23.5]} 22. Nxe2 {[%clk 0:02:29.2]}
22... f6 {[%clk 0:02:23.5]} 23. a4 {[%clk 0:02:11.5]} 23... g5 {[%clk
0:02:22.9]} 24. Bg3 {[%clk 0:02:06.7]} 24... h6 {[%clk 0:02:21.7]} 25. b3 {[%clk
0:02:06.4]} 25... Kf7 {[%clk 0:02:21]} 26. Ne1 {[%clk 0:02:05.1]} 26... f5
{[%clk 0:02:16.9]} 27. f3 {[%clk 0:02:01.6]} 27... f4 {[%clk 0:02:15.8]} 28. Bf2
{[%clk 0:02:01.5]} 28... Nd6 {[%clk 0:02:15.9]} 29. Nd3 {[%clk 0:02:01.5]} 29...
Bg7 {[%clk 0:02:12.4]} 30. g3 {[%clk 0:02:01.5]} 30... fxg3 {[%clk 0:02:12]} 31.
hxg3 {[%clk 0:02:02.4]} 31... h5 {[%clk 0:02:10.8]} 32. Kg2 {[%clk 0:01:55.2]}
32... Kg6 {[%clk 0:02:05.6]} 33. c3 {[%clk 0:01:42.6]} 33... Kf5 {[%clk
0:01:48.9]} 34. Be3 {[%clk 0:01:41.1]} 34... Nf8 {[%clk 0:01:37.6]} 35. g4+
{[%clk 0:01:33]} 35... Kg6 {[%clk 0:01:36.6]} 36. gxh5+ {[%clk 0:01:30.8]} 36...
Kxh5 {[%clk 0:01:37.5]} 37. Ng3+ {[%clk 0:01:23.2]} 37... Kg6 {[%clk 0:01:37.2]}
38. Kf2 {[%clk 0:01:05.1]} 38... Ne6 {[%clk 0:01:35.7]} 39. Ke2 {[%clk
0:01:05.7]} 39... Nf5 {[%clk 0:01:29.8]} 40. Nxf5 {[%clk 0:01:01.6]} 40... Kxf5
{[%clk 0:01:30.7]} 41. Kd2 {[%clk 0:00:58.4]} 41... Bf8 {[%clk 0:01:30.5]} 42.
Ne5 {[%clk 0:00:38.3]} 42... Bd6 {[%clk 0:01:29.6]} 43. Nf7 {[%clk 0:00:36]}
43... Bc7 {[%clk 0:01:26.4]} 44. Nh6+ {[%clk 0:00:35.5]} 44... Kg6 {[%clk
0:01:25.8]} 45. Ng4 {[%clk 0:00:36.4]} 45... Ng7 {[%clk 0:01:19.7]} 46. Kd3
{[%clk 0:00:34.3]} 46... Nf5 {[%clk 0:01:15.1]} 47. Bd2 {[%clk 0:00:34.6]} 47...
Nh4 {[%clk 0:01:14.6]} 48. Ke2 {[%clk 0:00:34.7]} 48... Kf5 {[%clk 0:01:12.9]}
49. Nh6+ {[%clk 0:00:34.5]} 49... Kg6 {[%clk 0:01:12.6]} 50. Ng4 {[%clk
0:00:35.4]} 50... Nf5 {[%clk 0:01:12.8]} 51. Nf2 {[%clk 0:00:34]} 51... Ng7
{[%clk 0:01:02]} 52. Ng4 {[%clk 0:00:32.6]} 52... Ne6 {[%clk 0:01:02.3]} 53. Kd3
{[%clk 0:00:28.7]} 53... b6 {[%clk 0:01:00.6]} 54. Ke2 {[%clk 0:00:22.1]} 54...
Nf8 {[%clk 0:00:52.7]} 55. Nf2 {[%clk 0:00:20.2]} 55... Nd7 {[%clk 0:00:50.2]}
56. Nh3 {[%clk 0:00:13.9]} 56... Bd8 {[%clk 0:00:50.3]} 57. Kd3 {[%clk
0:00:14.2]} 57... Kh5 {[%clk 0:00:46.1]} 58. Ke2 {[%clk 0:00:13.7]} 58... Kh4
{[%clk 0:00:43.7]} 59. Nf2 {[%clk 0:00:14.2]} 59... Nf6 {[%clk 0:00:43.9]} 60.
c4 {[%clk 0:00:13.3]} 60... Bc7 {[%clk 0:00:41.2]} 61. Nd3 {[%clk 0:00:11.9]}
61... Kh5 {[%clk 0:00:36.1]} 62. Nb4 {[%clk 0:00:11.9]} 62... dxc4 {[%clk
0:00:34.9]} 63. bxc4 {[%clk 0:00:11]} 63... c5 {[%clk 0:00:32.7]} 64. dxc5
{[%clk 0:00:11.9]} 64... bxc5 {[%clk 0:00:33.6]} 65. Nc6 {[%clk 0:00:12.3]}
65... a6 {[%clk 0:00:30.9]} 66. Ne7 {[%clk 0:00:12.4]} 66... Nd7 {[%clk
0:00:26.3]} 67. Bc3 {[%clk 0:00:09.2]} 67... Be5 {[%clk 0:00:22]} 68. Nd5 {[%clk
0:00:05.7]} 68... Kg6 {[%clk 0:00:18.9]} 69. a5 {[%clk 0:00:04.8]} 69... Kf5
{[%clk 0:00:18.1]} 70. Kd3 {[%clk 0:00:04.2]} 70... Bd6 {[%clk 0:00:16.8]} 71.
Ke2 {[%clk 0:00:04]} 71... Be5 {[%clk 0:00:16.6]} 72. Kd3 {[%clk 0:00:03.8]}
72... Bxc3 {[%clk 0:00:16.9]} 73. Nxc3 {[%clk 0:00:04.7]} 73... Ne5+ {[%clk
0:00:17.1]} 74. Ke2 {[%clk 0:00:03.7]} 74... Nxc4 {[%clk 0:00:17.3]} 75. Ne4
{[%clk 0:00:04.6]} 75... g4 {[%clk 0:00:08.1]} 76. Nxc5 {[%clk 0:00:05.5]} 76...
g3 {[%clk 0:00:08.1]} 77. Nxa6 {[%clk 0:00:05.4]} 77... Nxa5 {[%clk 0:00:05.5]}
78. Nc5 {[%clk 0:00:05.6]} 78... Nc4 {[%clk 0:00:05.7]} 79. Ne4 {[%clk
0:00:06.1]} 79... Kf4 {[%clk 0:00:05.4]} 80. Nxg3 {[%clk 0:00:05.8]} 80... Kxg3
{[%clk 0:00:06.3]} 81. Kd3 {[%clk 0:00:06.2]} 81... Kf4 {[%clk 0:00:06.9]} 82.
Kd4 {[%clk 0:00:07]} 82... Kxf3 {[%clk 0:00:07.6]} 1/2-1/2

[Event "*** SCC Grand Prix: Titled Tuesday Blitz"]
[Site "Chess.com"]
[Date "2020.06.02"]
[Round "3"]
[White "vaishali2001"]
[Black "chito89"]
[Result "0-1"]
[WhiteElo "2607"]
[BlackElo "2804"]
[TimeControl "180+1"]
[EndTime "10:30:58 PDT"]
[Termination "chito89 won by resignation"]

1. e4 {[%clk 0:03:00.9]} 1... g6 {[%clk 0:02:56]} 2. d4 {[%clk 0:03:00]} 2...
Bg7 {[%clk 0:02:54.8]} 3. Nc3 {[%clk 0:03:00.5]} 3... d6 {[%clk 0:02:53.3]} 4.
Nf3 {[%clk 0:02:56.1]} 4... c6 {[%clk 0:02:51.8]} 5. a4 {[%clk 0:02:55.4]} 5...
Nf6 {[%clk 0:02:45.1]} 6. Be2 {[%clk 0:02:55.5]} 6... O-O {[%clk 0:02:44.5]} 7.
O-O {[%clk 0:02:55]} 7... Nbd7 {[%clk 0:02:43.7]} 8. a5 {[%clk 0:02:42.5]} 8...
Qc7 {[%clk 0:02:37.2]} 9. Be3 {[%clk 0:02:39.2]} 9... Rb8 {[%clk 0:02:29.1]} 10.
h3 {[%clk 0:02:20.6]} 10... b5 {[%clk 0:02:27.1]} 11. axb6 {[%clk 0:02:16.6]}
11... axb6 {[%clk 0:02:28]} 12. d5 {[%clk 0:02:05.3]} 12... Bb7 {[%clk
0:02:15.7]} 13. Nd4 {[%clk 0:01:29.5]} 13... cxd5 {[%clk 0:01:59.9]} 14. Ndb5
{[%clk 0:01:28.3]} 14... Qd8 {[%clk 0:01:59]} 15. exd5 {[%clk 0:01:26.6]} 15...
Ra8 {[%clk 0:01:51.9]} 16. Qd2 {[%clk 0:01:22.7]} 16... Nc5 {[%clk 0:01:42.7]}
17. Bf3 {[%clk 0:01:15.8]} 17... Qd7 {[%clk 0:01:08.8]} 18. Nd4 {[%clk
0:00:55.3]} 18... Rxa1 {[%clk 0:00:57.7]} 19. Rxa1 {[%clk 0:00:53.1]} 19... Ra8
{[%clk 0:00:58.6]} 20. Qe1 {[%clk 0:00:36.7]} 20... Qe8 {[%clk 0:00:53.2]} 21.
b4 {[%clk 0:00:26.2]} 21... Ncd7 {[%clk 0:00:42.7]} 22. Rxa8 {[%clk 0:00:13.7]}
22... Qxa8 {[%clk 0:00:43.6]} 23. Nc6 {[%clk 0:00:13.9]} 23... Bf8 {[%clk
0:00:32.4]} 24. b5 {[%clk 0:00:11.8]} 24... Ne5 {[%clk 0:00:18.5]} 25. Nxe5
{[%clk 0:00:10]} 25... dxe5 {[%clk 0:00:19.4]} 26. Bxb6 {[%clk 0:00:10.3]} 26...
Nxd5 {[%clk 0:00:19.9]} 27. Bxd5 {[%clk 0:00:07.5]} 27... Bxd5 {[%clk
0:00:20.8]} 28. Nxd5 {[%clk 0:00:07]} 28... Qxd5 {[%clk 0:00:21.7]} 29. Qe2
{[%clk 0:00:07.6]} 29... Qa2 {[%clk 0:00:19.4]} 30. Qxe5 {[%clk 0:00:06.1]}
30... Qxc2 {[%clk 0:00:16.8]} 31. Bd4 {[%clk 0:00:06.1]} 31... f6 {[%clk
0:00:11.2]} 32. Qd5+ {[%clk 0:00:05.5]} 32... Kg7 {[%clk 0:00:11.1]} 33. b6
{[%clk 0:00:05]} 33... Qb1+ {[%clk 0:00:08.5]} 34. Kh2 {[%clk 0:00:05.2]} 34...
e5 {[%clk 0:00:07.8]} 35. Qd7+ {[%clk 0:00:04.9]} 35... Kh6 {[%clk 0:00:06.6]}
36. Be3+ {[%clk 0:00:05.2]} 36... g5 {[%clk 0:00:07.1]} 37. b7 {[%clk
0:00:05.6]} 37... e4 {[%clk 0:00:05.6]} 38. g3 {[%clk 0:00:04.7]} 38... Qb4
{[%clk 0:00:03.9]} 39. Qc8 {[%clk 0:00:04.3]} 39... Bd6 {[%clk 0:00:03.8]} 40.
Qe6 {[%clk 0:00:04.1]} 40... Kg6 {[%clk 0:00:04.1]} 41. Qd7 {[%clk 0:00:03.4]}
41... Be5 {[%clk 0:00:03.1]} 42. Kg2 {[%clk 0:00:03.3]} 42... h5 {[%clk
0:00:02.6]} 43. Ba7 {[%clk 0:00:03.1]} 43... e3 {[%clk 0:00:02.2]} 44. Bxe3
{[%clk 0:00:03.4]} 44... Qe4+ {[%clk 0:00:02.1]} 45. Kg1 {[%clk 0:00:03.8]}
45... h4 {[%clk 0:00:02.8]} 46. Qe8+ {[%clk 0:00:03]} 46... Kf5 {[%clk
0:00:02.3]} 47. b8=Q {[%clk 0:00:03.3]} 47... hxg3 {[%clk 0:00:01.2]} 48. fxg3
{[%clk 0:00:03]} 48... Qxe3+ {[%clk 0:00:01.1]} 49. Kf1 {[%clk 0:00:03.5]} 49...
Qf3+ {[%clk 0:00:01.7]} 50. Ke1 {[%clk 0:00:03.4]} 50... Qxg3+ {[%clk
0:00:02.6]} 51. Kd1 {[%clk 0:00:03.3]} 51... Bxb8 {[%clk 0:00:03.5]} 52. Qd7+
{[%clk 0:00:03.6]} 52... Kg6 {[%clk 0:00:04]} 53. Qe8+ {[%clk 0:00:04.1]} 53...
Kf5 {[%clk 0:00:04.2]} 54. Qd7+ {[%clk 0:00:04.2]} 54... Ke4 {[%clk 0:00:04.8]}
55. Qc6+ {[%clk 0:00:04.4]} 55... Ke3 {[%clk 0:00:04.5]} 56. Qc3+ {[%clk
0:00:04.8]} 56... Kf2 {[%clk 0:00:04.3]} 57. Qxf6+ {[%clk 0:00:04.8]} 57... Bf4
{[%clk 0:00:01.8]} 58. Qd4+ {[%clk 0:00:03]} 58... Qe3 {[%clk 0:00:01.5]} 59.
Qb4 {[%clk 0:00:03.1]} 59... Qf3+ {[%clk 0:00:02]} 60. Kc2 {[%clk 0:00:03.4]}
60... Qe2+ {[%clk 0:00:02.6]} 61. Kb3 {[%clk 0:00:03.9]} 61... Qe3+ {[%clk
0:00:03.2]} 62. Ka4 {[%clk 0:00:04.3]} 62... Qxh3 {[%clk 0:00:03.7]} 63. Qb6+
{[%clk 0:00:03.9]} 63... Kg3 {[%clk 0:00:04.6]} 64. Qg1+ {[%clk 0:00:03.7]}
64... Kh4 {[%clk 0:00:05.5]} 65. Qe1+ {[%clk 0:00:04]} 65... Qg3 {[%clk
0:00:06]} 66. Qe7 {[%clk 0:00:04.5]} 66... Kg4 {[%clk 0:00:06]} 67. Qh7 {[%clk
0:00:05.2]} 67... Qe3 {[%clk 0:00:05.5]} 68. Qd7+ {[%clk 0:00:05.3]} 68... Kg3
{[%clk 0:00:06.4]} 69. Qh7 {[%clk 0:00:05.2]} 69... Qd4+ {[%clk 0:00:06.5]} 70.
Kb5 {[%clk 0:00:05.4]} 70... Qe5+ {[%clk 0:00:06.7]} 71. Ka6 {[%clk 0:00:05.7]}
71... Qd6+ {[%clk 0:00:06.2]} 72. Kb5 {[%clk 0:00:06.2]} 72... Qe5+ {[%clk
0:00:05.2]} 73. Ka6 {[%clk 0:00:06.8]} 73... Qa1+ {[%clk 0:00:04.5]} 74. Kb7
{[%clk 0:00:06.5]} 74... Qb2+ {[%clk 0:00:04.1]} 75. Ka6 {[%clk 0:00:06.5]}
75... Qa3+ {[%clk 0:00:04]} 76. Kb5 {[%clk 0:00:06.6]} 76... g4 {[%clk
0:00:04.9]} 77. Qe4 {[%clk 0:00:05.5]} 77... Qe3 {[%clk 0:00:04.7]} 78. Qb1
{[%clk 0:00:05.2]} 78... Kf2 {[%clk 0:00:04.6]} 79. Qc2+ {[%clk 0:00:05.2]}
79... Qe2+ {[%clk 0:00:04.9]} 80. Qxe2+ {[%clk 0:00:05.7]} 80... Kxe2 {[%clk
0:00:05.8]} 0-1